Cogmind - Beta 10.1 @@@ ROGUE MODE // 2021.05.13 @ 19:04:46 Player: Farfid Result: Destroyed by G-67 Veteran with Electrolaser Performance ------------- Evolutions (5) 2500 Regions Visited (15) 3000 Robots Destroyed (106) 530 Value Destroyed (3732) 3732 Prototype IDs (40) 800 Alien Tech Used (2) 400 Bonus (1121) 1121 TOTAL SCORE: 12083 Bonus ------- Follower Combat Kills 557 Met Data Miner 300 Met Zhirov 300 Friendly Fire -36 Cogmind --------- Core Integrity 0/1000 Matter 206/300 Energy 100/100 System Corruption 18% Temperature Cool (33) Movement Core (800) Ox15 Location -4/Proximity Caves Parts ------- > --- POWER (1) -------- (None) > --- PROPULSION (4) --- (None) > --- UTILITY (9) ------ Large Storage Unit High-capacity Storage Unit Improved Targeting Computer Advanced Targeting Computer > --- WEAPON (3) ------- (None) > --- INVENTORY (18) --- Makeshift Terrain Scanner Improved Transmission Jammer Drone Bay (2/2) Variable Charge Gun Cooled Particle Cannon Power Maul Peak State ------------ > --- POWER ------------ Cold Fusion Reactor > --- PROPULSION ------- Enhanced Biometal Leg Enhanced Biometal Leg > --- UTILITY ---------- Advanced Cooling System Large Storage Unit High-capacity Storage Unit Improved Energy Well Long-range Sensor Array Advanced Signal Interpreter Advanced Targeting Computer Advanced Powered Armor Advanced Powered Armor > --- WEAPON ----------- Heavy Flak Cannon Heavy Flak Cannon > --- INVENTORY -------- Fusion Reactor Wheel Compact Matter Pod Makeshift Terrain Scanner Improved Targeting Computer Improved Transmission Jammer Hardened Medium Armor Plating Drone Bay Transdimensional Reconstructor Variable Charge Gun Cooled Particle Cannon Heavy Machine Gun Hypervelocity Mass Driver Power Maul [Rating: 82] Favorites ----------- Power Antimatter Reactor Engine Light Ion Engine Power Core Light Fission Core Reactor Antimatter Reactor Propulsion Wheel Treads Medium Treads Leg Enhanced Biometal Leg Wheel Wheel Flight Unit Cooled Nuclear Pulse Thruster Utility Layered Light Armor Plating Device Long-range Sensor Array Storage Large Storage Unit Processor Advanced Signal Interpreter Protection Layered Light Armor Plating Weapon Cooled Particle Cannon Energy Gun Shock Rifle Energy Cannon Cooled Particle Cannon Ballistic Gun Autogun Ballistic Cannon Heavy Flak Cannon Launcher Missile Launcher Slashing Weapon Great Axe Build | -11 -10 -10 -10 -9 -8 -7 -7 -7 -6 -6 -5 -5 -5 -5 -4 ------- Run | Scr Mat Min Exi Min Mat Fac Low Dat Pro Fac Fac Upp Upp Zhi Pro Slots Evolved 10 | . . . . . 4 2 . . . 2 2 . . . . Power . | . . . . . . . . . . . . . . . . Propulsion 2 | . . . . . 1 . . . . . 1 . . . . Utility 7 | . . . . . 2 2 . . . 2 1 . . . . Weapon 1 | . . . . . 1 . . . . . . . . . . Parts Attached 142 | 6 1 1 . 1 20 19 1 . 7 22 9 5 15 22 13 Power 15 | 1 . . . 1 . 3 . . 1 4 . . 1 2 2 Engine 4 | 1 . . . 1 . 1 . . . 1 . . . . . Core 4 | . . . . . . 2 . . 1 1 . . . . . Reactor 7 | . . . . . . . . . . 2 . . 1 2 2 Propulsion 24 | 2 . . . . 5 2 . . 2 2 4 1 . 4 2 Treads 2 | . . . . . . . . . . . 1 1 . . . Leg 3 | . . . . . . . . . 1 . . . . 2 . Wheel 18 | 2 . . . . 5 2 . . 1 2 3 . . 1 2 Hover . | . . . . . . . . . . . . . . . . Flight 1 | . . . . . . . . . . . . . . 1 . Utility 56 | 1 1 1 . . 4 6 1 . . 11 5 2 8 10 6 Device 23 | . . 1 . . 1 2 1 . . 3 4 1 2 6 2 Storage 9 | 1 1 . . . 1 . . . . 2 . 1 1 1 1 Processor 6 | . . . . . . 1 . . . . 1 . 3 . 1 Hackware . | . . . . . . . . . . . . . . . . Protection 18 | . . . . . 2 3 . . . 6 . . 2 3 2 Artifact . | . . . . . . . . . . . . . . . . Weapon 47 | 2 . . . . 11 8 . . 4 5 . 2 6 6 3 Energy Gun 7 | . . . . . 3 3 . . . 1 . . . . . Energy Cannon 14 | . . . . . . 2 . . 2 2 . 1 5 2 . Ballistic Gun 15 | 2 . . . . 7 3 . . . 1 . . . 1 1 Ballistic Cannon 4 | . . . . . . . . . . . . . . 2 2 Launcher 6 | . . . . . 1 . . . 2 1 . 1 . 1 . Special Weapon . | . . . . . . . . . . . . . . . . Impact Weapon . | . . . . . . . . . . . . . . . . Slashing Weapon 1 | . . . . . . . . . . . . . 1 . . Piercing Weapon . | . . . . . . . . . . . . . . . . Special Melee Weapon . | . . . . . . . . . . . . . . . . Unidentified Prototypes 17 | . . . . . 4 2 . . . 4 1 . . 5 1 Parts Lost 49 | . . . . 1 3 . . . 5 1 2 . 4 14 19 Power 5 | . . . . 1 . . . . . . . . 1 . 3 Propulsion 13 | . . . . . 1 . . . 3 . 2 . 1 3 3 Utility 18 | . . . . . 1 . . . 1 1 . . 1 5 9 Weapon 13 | . . . . . 1 . . . 1 . . . 1 6 4 Highest Loss Streak 10 | . . . . 1 1 . . . 3 1 1 . 4 10 8 Average Slot Usage (%) 92 | . 86 97 100 100 89 92 100 100 96 96 99 100 96 77 77 Engine 3 | . 14 14 14 14 9 3 7 7 2 2 . . . . . Reactor 2 | . . . . . . . . . . 2 5 5 4 4 4 Treads 1 | . . . . . . . . . . . 5 5 5 2 . Leg 1 | . . . . . . . . . . . . . . 3 9 Wheel 17 | . 28 28 28 28 26 23 23 23 21 17 16 17 15 5 . Device 12 | . . 11 14 14 7 7 15 15 15 8 17 17 17 13 9 Storage 13 | . 14 14 14 14 10 15 15 15 15 13 11 11 11 14 17 Processor 4 | . . . . . . . 7 7 6 . 4 5 10 13 11 Protection 12 | . . . . . 8 15 7 7 7 29 17 17 9 5 9 Energy Gun 1 | . . . . . . 3 7 7 5 . . . . . . Energy Cannon 9 | . . . . . . 1 15 15 15 18 17 16 16 9 . Ballistic Gun 6 | . 28 28 28 28 26 17 . . . . . . . . . Ballistic Cannon 1 | . . . . . . . . . . . . . . . 10 Naked Turns . | . . . . . . . . . . . . . . . . Heaviest Build 114 | 11 27 24 24 26 61 69 68 66 68 109 103 103 103 114 114 Greatest Support 60 | 20 20 20 20 20 42 48 48 48 48 36 36 30 30 60 60 Greatest Overweight (x) 29 | . 1 1 1 1 1 1 1 1 22 4 5 3 4 29 8 Average Overweight (x) 1 | . . 1 1 1 . 1 1 1 1 2 2 3 3 3 1 Largest Inventory Capacity 18 | 6 12 10 10 10 16 16 16 16 16 18 18 18 18 18 18 Average Capacity 15 | 4 6 10 10 10 10 16 16 16 16 17 18 18 18 18 18 Most Carried 18 | 3 4 7 9 10 16 16 16 16 16 18 18 18 18 18 14 Average Carried 14 | 2 3 6 8 8 10 15 16 16 15 17 17 17 17 14 11 Final Capacity 18 | 6 10 10 10 10 16 16 16 16 16 18 18 18 18 18 18 Final Carried 18 | 3 4 7 9 10 16 16 16 16 14 18 18 18 17 9 6 Class Distribution -------------------- 40% | Scavenger-Tank 27% | Scavenger-Mutant 17% | Mutant 13% | Tank Dominant Class ---------------- Mutant | -10/Materials Mutant | -10/Mines Mutant | -10/Exiles Mutant | -9/Mines Tank | -8/Materials Tank | -7/Factory Scavenger-Mutant | -7/Lower Caves Scavenger-Mutant | -7/Data Miner Scavenger-Mutant | -6/Proximity Caves Scavenger-Tank | -6/Factory Scavenger-Tank | -5/Factory Scavenger-Tank | -5/Upper Caves Scavenger-Tank | -5/Upper Caves Scavenger-Tank | -5/Zhirov Scavenger-Mutant | -4/Proximity Caves Resources | -11 -10 -10 -10 -9 -8 -7 -7 -7 -6 -6 -5 -5 -5 -5 -4 ----------- Run | Scr Mat Min Exi Min Mat Fac Low Dat Pro Fac Fac Upp Upp Zhi Pro Matter Collected 3404 | 244 28 92 . 83 748 397 . . 229 390 80 174 172 210 557 Remotely 333 | . . 40 . 83 . . . . . . . . . 210 . Salvage Created 4048 | . . 132 . 15 849 441 . . 458 604 385 204 225 210 525 Parts 193 | . . 10 . . 38 26 . . 19 37 12 6 10 13 22 Haulers Intercepted 5 | . . . . . 3 . . . . 1 1 . . . . Recyclers Shooed 5 | . . . . . 3 1 . . . . 1 . . . . Parts Field Recycled . | . . . . . . . . . . . . . . . . Retrieved Matter . | . . . . . . . . . . . . . . . . Parts Self-Destructed 60 | . . . . . . . . . 21 . . 2 15 . 22 Prevented 5 | . . . . . . . . . 3 . . 2 . . . Kills | -11 -10 -10 -10 -9 -8 -7 -7 -7 -6 -6 -5 -5 -5 -5 -4 ------- Run | Scr Mat Min Exi Min Mat Fac Low Dat Pro Fac Fac Upp Upp Zhi Pro Combat Hostiles Destroyed 78 | . . 3 . . 9 7 . . 13 10 4 7 5 . 20 Guns 17 | . . 3 . . 5 7 . . . . . . . . 2 Cannons 39 | . . . . . . . . . 5 7 3 1 5 . 18 AOE 19 | . . . . . 4 . . . 7 3 . 5 . . . Classes Destroyed 17 | . . 2 . 1 6 2 . . 3 . . 1 2 . . Worker 4 | . . . . 1 1 . . . . 1 1 . . . . Builder 3 | . . . . . 2 . . . . 1 . . . . . Hauler 5 | . . . . . 3 . . . . 1 1 . . . . Recycler 7 | . . 1 . . 4 2 . . . . . . . . . Minesweeper 1 | . . . . . . . . . . . . 1 . . . Mechanic 1 | . . . . . . . . . 1 . . . . . . Operator 1 | . . . . . . 1 . . . . . . . . . Watcher 2 | . . . . . 2 . . . . . . . . . . Swarmer 32 | . . 3 . . . 2 . . 3 3 . 5 4 . 12 Grunt 14 | . . . . . 3 2 . . 4 2 1 1 . . 1 Brawler 2 | . . . . . . . . . 2 . . . . . . Duelist 5 | . . . . . . . . . 1 . . . . . 4 Sentry 9 | . . . . . 4 . . . . 2 1 1 . . 1 Hunter 6 | . . . . . 2 1 . . 2 1 . . . . . Programmer 9 | . . . . . . 2 . . 1 2 2 . . . 2 Behemoth 1 | . . . . . . . . . . . . . 1 . . Decomposer 1 | . . . . . . . . . . . . 1 . . . Samaritan 1 | . . . . . . . . . . . . . 1 . . Best Kill Streak 10 | . . 3 . 1 10 3 . . 8 5 3 5 4 2 10 Combat Bots Only 10 | . . 3 . . 4 3 . . 7 4 2 5 4 . 10 Max Kills in Single Turn 4 | . . 1 . 1 2 1 . . 3 4 1 2 1 1 2 Gunslinging . | . . . . . . . . . . . . . . . . Exploded 3 | . . . . . 1 . . . 3 3 . 2 . . . Melee . | . . . . . . . . . . . . . . . . Uniques/NPCs Destroyed 2 | . . . . . . . . . . . . . . 2 . Svarog (-5/Zhirov) Perun (-5/Zhirov) Combat | -11 -10 -10 -10 -9 -8 -7 -7 -7 -6 -6 -5 -5 -5 -5 -4 -------- Run | Scr Mat Min Exi Min Mat Fac Low Dat Pro Fac Fac Upp Upp Zhi Pro Damage Taken 8903 | . . 105 . 139 553 353 . . 866 529 489 133 645 1550 3541 Core 1302 | . . 25 . 15 60 13 . . 136 54 64 . 59 199 677 Absorbed by Shields . | . . . . . . . . . . . . . . . . Core Remaining (%) 88 | 100 . . . 84 89 . . . 78 93 . . . . . Volleys Fired 318 | . 3 11 . 16 46 31 2 1 35 23 23 16 24 36 51 Largest 3 | . 2 2 . 2 3 3 1 2 3 3 3 3 3 3 2 Hottest 106 | . 40 40 . 40 69 102 50 60 90 90 90 90 90 90 106 Shots Fired 650 | . 6 22 . 32 126 87 2 2 47 64 64 38 38 38 84 Gun 302 | . 6 22 . 32 120 87 2 . 17 1 . . . 12 3 Cannon 319 | . . . . . . . . 2 22 62 64 33 38 17 81 Launcher 29 | . . . . . 6 . . . 8 1 . 5 . 9 . Special . | . . . . . . . . . . . . . . . . Kinetic 345 | . 6 22 . 32 120 68 . . . 1 . . . 12 84 Thermal 246 | . . . . . . 16 . 2 22 62 64 33 38 9 . Explosive 20 | . . . . . 6 . . . 8 1 . 5 . . . Electromagnetic 39 | . . . . . . 3 2 . 17 . . . . 17 . Robot Hit Streak 21 | . 2 3 . 20 21 5 1 . 15 13 9 9 18 15 12 Robot Miss Streak 10 | . 2 5 . 6 5 3 1 . 3 2 4 3 1 2 10 Penetration Max . | . . . . . . . . . . . . . . . . Secondary Targets 2 | . . 1 . . 1 . . . . . . . . . . Max Gunslinging Chain 1 | . . 1 . . 1 . . . . . . . . . . Shots Hit Robots 427 | . 3 9 . 24 82 44 1 . 32 42 36 21 27 32 74 Core Hits 234 | . 1 5 . 3 37 20 . . 33 24 10 12 10 14 65 Critical Hits 7 | . . . . . . . . . . . . . . 3 4 Critical Kills 3 | . . . . . . . . . . . . . . . 3 Critical Parts Destroyed 4 | . . . . . . . . . . . . . . 3 1 Melee Attacks . | . . . . . . . . . . . . . . . . Impact . | . . . . . . . . . . . . . . . . Slashing . | . . . . . . . . . . . . . . . . Piercing . | . . . . . . . . . . . . . . . . Sneak Attacks . | . . . . . . . . . . . . . . . . Combat Hostiles . | . . . . . . . . . . . . . . . . Follow-up Attacks . | . . . . . . . . . . . . . . . . Damage Inflicted 11663 | . 21 106 . 346 1836 722 16 . 1972 1321 1108 882 733 880 1720 Guns 2696 | . 21 106 . 346 1150 722 16 . 176 25 . . . 65 69 Cannons 5984 | . . . . . . . . . 446 1065 1108 546 733 435 1651 Explosions 2983 | . . . . . 686 . . . 1350 231 . 336 . 380 . Melee . | . . . . . . . . . . . . . . . . Ramming . | . . . . . . . . . . . . . . . . Kinetic 3906 | . 21 106 . 346 1150 473 . . . 25 . . . 65 1720 Thermal 4336 | . . . . . . 195 . . 446 1065 1108 546 733 243 . Explosive 2603 | . . . . . 686 . . . 1350 231 . 336 . . . Electromagnetic 818 | . . . . . . 54 16 . 176 . . . . 572 . Impact . | . . . . . . . . . . . . . . . . Slashing . | . . . . . . . . . . . . . . . . Piercing . | . . . . . . . . . . . . . . . . Highest Corruption 18 | . . . . . . . . . 8 5 5 5 5 14 18 Average Corruption 7 | . . . . . . . . . 7 3 3 5 5 9 14 Corruption Purged . | . . . . . . . . . . . . . . . . Effects 159 | . . . . . . . . . . 13 12 27 13 19 75 Message Errors 34 | . . . . . . . . . . 3 2 5 4 6 14 Matter Fused 25 | . . . . . . . . . . 1 1 6 3 5 9 Heat Flow Errors 15 | . . . . . . . . . . 1 1 2 2 . 9 Energy Discharges 16 | . . . . . . . . . . 1 1 4 2 1 7 Parts Rejected 1 | . . . . . . . . . . . . . . . 1 Data Loss (minor) 15 | . . . . . . . . . . 1 3 5 . 3 3 Data Loss (major) 4 | . . . . . . . . . . 1 . . 1 . 2 Misfires 7 | . . . . . . . . . . 1 . 1 1 1 3 Alerts 1 | . . . . . . . . . . . . . . . 1 Misdirections 7 | . . . . . . . . . . . . . . 1 6 Targeting Errors 28 | . . . . . . . . . . 4 3 3 . 1 17 Weapon Failures 6 | . . . . . . . . . . . 1 1 . 1 3 Overload Shots 16 | . . . . . . . . . . . 1 . 9 6 . Overflow Damage 184 | . . . . . 12 . . . 36 18 11 83 . 22 2 Projectiles 136 | . . . . . . . . . . 18 11 83 . 22 2 Explosions 48 | . . . . . 12 . . . 36 . . . . . . Melee . | . . . . . . . . . . . . . . . . Knockbacks 46 | . . . . . . . . . . . . . . . 46 Impact . | . . . . . . . . . . . . . . . . Kinetic 42 | . . . . . . . . . . . . . . . 42 Secondary 4 | . . . . . . . . . . . . . . . 4 Self-Inflicted Damage . | . . . . . . . . . . . . . . . . Shots . | . . . . . . . . . . . . . . . . Rammed . | . . . . . . . . . . . . . . . . Targets Rammed . | . . . . . . . . . . . . . . . . Kicked . | . . . . . . . . . . . . . . . . Crushed . | . . . . . . . . . . . . . . . . Highest Temperature 204 | . . . . 2 104 98 . . . 155 112 99 135 . 204 Average Temperature 36 | . . . . 2 30 28 . . . 50 65 54 58 . 93 Received Heat Transfer 942 | . . . . 78 117 27 . . 126 72 36 18 96 72 300 Siege Activations . | . . . . . . . . . . . . . . . . Robots Corrupted 3 | . . . . . . . . . 1 . . . . 2 . Combat Hostiles 1 | . . . . . . . . . 1 . . . . . . Parts Fried 7 | . . . . . . . . . . . . . . 7 . Impact Corruptions . | . . . . . . . . . . . . . . . . Robots Melted 3 | . . . . . . . . . . . 2 1 . . . Combat Hostiles 2 | . . . . . . . . . . . 1 1 . . . Parts Melted 11 | . . . . . . . . . 2 1 4 2 2 . . Heat Transferred 5421 | . . . . . . 407 . . 592 1443 1406 740 770 63 . Parts Sabotaged . | . . . . . . . . . . . . . . . . Parts Stolen . | . . . . . . . . . . . . . . . . Parts Stripped . | . . . . . . . . . . . . . . . . Power Chain Reactions . | . . . . . . . . . . . . . . . . Missiles Intercepted . | . . . . . . . . . . . . . . . . Alert | -11 -10 -10 -10 -9 -8 -7 -7 -7 -6 -6 -5 -5 -5 -5 -4 ------- Run | Scr Mat Min Exi Min Mat Fac Low Dat Pro Fac Fac Upp Upp Zhi Pro Peak Influence 422 | . 56 111 . 78 365 141 . . . 422 255 . . . . Initial 201 | . . 21 . . 4 9 . . . 201 144 . . . . Average 162 | . 36 97 . 28 145 69 . . . 289 156 . . . . Maximum Alert Level 2 | . . . . . 1 . . . . 2 1 . . . . Low Security (%) 65 | 100 100 100 . 100 64 100 . . . 14 78 . . . . Level 1 32 | . . . . . 35 . . . . 77 21 . . . . Level 2 2 | . . . . . . . . . . 7 . . . . . Level 3 . | . . . . . . . . . . . . . . . . Level 4 . | . . . . . . . . . . . . . . . . Level 5 . | . . . . . . . . . . . . . . . . High Security . | . . . . . . . . . . . . . . . . Max Security . | . . . . . . . . . . . . . . . . Squads Dispatched 13 | . 1 . . . 2 4 . . 1 2 2 . . . 1 Investigation 3 | . 1 . . . . 2 . . . . . . . . . Extermination 6 | . . . . . . 2 . . . 2 2 . . . . Reinforcement 2 | . . . . . 2 . . . . . . . . . . Assault 2 | . . . . . . . . . 1 . . . . . 1 Garrison . | . . . . . . . . . . . . . . . . Intercept . | . . . . . . . . . . . . . . . . Construction Impeded . | . . . . . . . . . . . . . . . . Haulers Reinforced . | . . . . . . . . . . . . . . . . Stealth | -11 -10 -10 -10 -9 -8 -7 -7 -7 -6 -6 -5 -5 -5 -5 -4 --------- Run | Scr Mat Min Exi Min Mat Fac Low Dat Pro Fac Fac Upp Upp Zhi Pro Distress Signals 1 | . . . . . 1 . . . . . . . . . . Communications Jammed . | . . . . . . . . . . . . . . . . Distress Signals . | . . . . . . . . . . . . . . . . Times Spotted 129 | . 4 3 . 6 14 11 . . 23 16 7 4 7 3 31 Peak Tracking Total 8 | . 2 3 . 3 8 3 . . 6 4 2 5 4 3 6 Tactical Retreats 4 | . . . . 1 . 1 . . . . . . 2 . . Traps | -11 -10 -10 -10 -9 -8 -7 -7 -7 -6 -6 -5 -5 -5 -5 -4 ------- Run | Scr Mat Min Exi Min Mat Fac Low Dat Pro Fac Fac Upp Upp Zhi Pro Traps Triggered 7 | . . . . . 1 1 . . . 2 3 . . . . Indirectly . | . . . . . . . . . . . . . . . . Trap Hack Attempts . | . . . . . . . . . . . . . . . . Triggered . | . . . . . . . . . . . . . . . . Disarmed . | . . . . . . . . . . . . . . . . Reprogrammed . | . . . . . . . . . . . . . . . . Reused 4 | . . . . . 2 . . . . . . 1 1 . . Traps Extracted . | . . . . . . . . . . . . . . . . Installed 6 | . . . . 1 2 . . . . . . 2 1 . . Triggered 7 | . . . . . 2 . . . . . . 2 3 . . Exploded 2 | . . . . . 1 . . . . . 1 . . . . Machines | -11 -10 -10 -10 -9 -8 -7 -7 -7 -6 -6 -5 -5 -5 -5 -4 ---------- Run | Scr Mat Min Exi Min Mat Fac Low Dat Pro Fac Fac Upp Upp Zhi Pro Machines Disabled 5 | . . . . . . . . . 1 1 3 . . . . Max in Single Turn 2 | . . . . . . . . . 1 1 2 . . . . Machines Sabotaged . | . . . . . . . . . . . . . . . . Garrisons Compromised . | . . . . . . . . . . . . . . . . Overloaded Fab Kills . | . . . . . . . . . . . . . . . . Fab Network Shutdowns . | . . . . . . . . . . . . . . . . Hacking | -11 -10 -10 -10 -9 -8 -7 -7 -7 -6 -6 -5 -5 -5 -5 -4 --------- Run | Scr Mat Min Exi Min Mat Fac Low Dat Pro Fac Fac Upp Upp Zhi Pro Machines Accessed 32 | . 3 . 1 . 3 7 . 4 . 7 2 . . 5 . Terminals 15 | . 2 . . . 3 4 . . . 4 2 . . . . Fabricators 2 | . . . . . . 2 . . . . . . . . . Repair Stations 1 | . . . . . . . . . . 1 . . . . . Recycling Units 1 | . 1 . . . . . . . . . . . . . . Scanalyzers 1 | . . . . . . . . . . 1 . . . . . Garrison Access 2 | . . . . . . 1 . . . 1 . . . . . Total Hacks 91 | . 6 . 1 . 9 13 . 25 . 14 5 . . 18 . Successful 61 | . 3 . 1 . 5 3 . 25 . 3 3 . . 18 . Failed 30 | . 3 . . . 4 10 . . . 11 2 . . . . Catastrophic 11 | . . . . . 1 4 . . . 6 . . . . . Database Lockouts . | . . . . . . . . . . . . . . . . Manual 7 | . 2 . . . 2 1 . . . 1 1 . . . . Terminals 32 | . 5 . . . 9 7 . . . 6 5 . . . . Fabricators 4 | . . . . . . 4 . . . . . . . . . Repair Stations 3 | . . . . . . . . . . 3 . . . . . Recycling Units 1 | . 1 . . . . . . . . . . . . . . Scanalyzers 3 | . . . . . . . . . . 3 . . . . . Garrison Access 4 | . . . . . . 2 . . . 2 . . . . . Terminal Hacks 56 | . 2 . 1 . 5 1 . 25 . 1 3 . . 18 . Record 18 | . . . 1 . . . . 11 . . . . . 6 . Part Schematic 12 | . . . . . . . . 8 . . . . . 4 . Robot Schematic 3 | . . . . . . . . 3 . . . . . . . Robot Analysis 4 | . . . . . . . . . . . . . . 4 . Prototype ID Bank 9 | . . . . . 1 . . 3 . . 1 . . 4 . Terminal Index 1 | . . . . . . 1 . . . . . . . . . Unreport Threat 1 | . . . . . 1 . . . . . . . . . . Locate Traps 5 | . 1 . . . 2 . . . . 1 1 . . . . Hauler Manifests 1 | . . . . . . . . . . . 1 . . . . Registered Components 1 | . 1 . . . . . . . . . . . . . . Zone Layout 1 | . . . . . 1 . . . . . . . . . . Fabricator Hacks 2 | . . . . . . 2 . . . . . . . . . Build 2 | . . . . . . 2 . . . . . . . . . Repair Station Hacks 1 | . . . . . . . . . . 1 . . . . . Scan Component 1 | . . . . . . . . . . 1 . . . . . Recycling Unit Hacks . | . . . . . . . . . . . . . . . . Scanalyzer 1 | . . . . . . . . . . 1 . . . . . Insert Component 1 | . . . . . . . . . . 1 . . . . . Garrison Access Hacks . | . . . . . . . . . . . . . . . . Unauthorized Hacks 1 | . 1 . . . . . . . . . . . . . . Terminals . | . . . . . . . . . . . . . . . . Fabricators . | . . . . . . . . . . . . . . . . Repair Stations . | . . . . . . . . . . . . . . . . Recycling Units 1 | . 1 . . . . . . . . . . . . . . Tunnel 1 | . 1 . . . . . . . . . . . . . . Scanalyzers . | . . . . . . . . . . . . . . . . Garrison Access . | . . . . . . . . . . . . . . . . Data Cores Recovered . | . . . . . . . . . . . . . . . . Used . | . . . . . . . . . . . . . . . . Hacking Detections 21 | . 2 . . . 3 7 . . . 7 2 . . . . Full Trace Events 2 | . . . . . . 2 . . . . . . . . . Feedback Events . | . . . . . . . . . . . . . . . . Feedback Blocked . | . . . . . . . . . . . . . . . . Robot Schematics Acquired 3 | . . . . . . . . 3 . . . . . . . Robots Built 1 | . . . . . . 1 . . . . . . . . . Matter 153 | . . . . . . 153 . . . . . . . . . Time 40 | . . . . . . 40 . . . . . . . . . Total Robot Build Rating 1 | . . . . . . 1 . . . . . . . . . Part Schematics Acquired 12 | . . . . . . . . 8 . . . . . 4 . Parts Built 2 | . . . . . . 2 . . . . . . . . . Matter 168 | . . . . . . 168 . . . . . . . . . Time 42 | . . . . . . 42 . . . . . . . . . Total Part Build Rating 8 | . . . . . . 8 . . . . . . . . . Parts Repaired . | . . . . . . . . . . . . . . . . Time . | . . . . . . . . . . . . . . . . Parts Recycled . | . . . . . . . . . . . . . . . . Recycled Matter . | . . . . . . . . . . . . . . . . Retrieved Matter . | . . . . . . . . . . . . . . . . Retrieved Components . | . . . . . . . . . . . . . . . . Parts Scanalyzed 1 | . . . . . . . . . . 1 . . . . . Part Schematics Acquired . | . . . . . . . . . . . . . . . . Parts Damaged . | . . . . . . . . . . . . . . . . Bothacking | -11 -10 -10 -10 -9 -8 -7 -7 -7 -6 -6 -5 -5 -5 -5 -4 ------------ Run | Scr Mat Min Exi Min Mat Fac Low Dat Pro Fac Fac Upp Upp Zhi Pro Used RIF Installer . | . . . . . . . . . . . . . . . . Robots Hacked . | . . . . . . . . . . . . . . . . Non-combat . | . . . . . . . . . . . . . . . . Combat . | . . . . . . . . . . . . . . . . Robot Hacks Applied . | . . . . . . . . . . . . . . . . Relay Couplers Released . | . . . . . . . . . . . . . . . . Robots Rewired 1 | . . . . . . . . . 1 . . . . . . Allies Hacked . | . . . . . . . . . . . . . . . . Hacks Repelled . | . . . . . . . . . . . . . . . . Allies | -11 -10 -10 -10 -9 -8 -7 -7 -7 -6 -6 -5 -5 -5 -5 -4 -------- Run | Scr Mat Min Exi Min Mat Fac Low Dat Pro Fac Fac Upp Upp Zhi Pro Total Allies 6 | . . 3 . . . 1 . . 2 . . . . . . Largest Group 3 | . . 3 3 3 . 1 . . 2 2 . . . . . Highest-Rated Group 119 | . . 40 40 40 . 10 . . 119 119 . . . . . Highest-Rated Ally 94 | . . 16 16 16 . 10 . . 94 87 . . . . . Total Orders . | . . . . . . . . . . . . . . . . Ally Attacks 85 | . . . . 29 . . . . 37 19 . . . . . Total Damage 2364 | . . . . 395 . . . . 1193 776 . . . . . Kills 18 | . . . . 4 . . . . 8 6 . . . . . Allies Corrupted . | . . . . . . . . . . . . . . . . Allies Melted . | . . . . . . . . . . . . . . . . Intel | -11 -10 -10 -10 -9 -8 -7 -7 -7 -6 -6 -5 -5 -5 -5 -4 ------- Run | Scr Mat Min Exi Min Mat Fac Low Dat Pro Fac Fac Upp Upp Zhi Pro Robot Analysis Total 4 | . . . . . . . . . . . . . . 4 . Derelict Logs Recovered 9 | . . 2 . . . . . . 2 . . 2 1 . 2 Drone Launches . | . . . . . . . . . . . . . . . . Drone Recoveries . | . . . . . . . . . . . . . . . . Exploration | -11 -10 -10 -10 -9 -8 -7 -7 -7 -6 -6 -5 -5 -5 -5 -4 ------------- Run | Scr Mat Min Exi Min Mat Fac Low Dat Pro Fac Fac Upp Upp Zhi Pro Turns Passed 8770 | 46 146 440 309 204 589 739 132 96 832 1303 771 832 679 511 1141 Spaces Moved 6280 | 43 124 420 326 114 397 544 103 85 561 995 472 661 459 248 728 Core 5 | 1 . . . . . . . . 1 . . . . 3 . Treads . | . . . . . . . . . . . . . . . . Legs 800 | . . . . . . . . . . . . . . 96 704 Wheels 5475 | 42 124 420 326 114 397 544 103 85 560 995 472 661 459 149 24 Hover . | . . . . . . . . . . . . . . . . Flight . | . . . . . . . . . . . . . . . . Fastest Speed 50 | 50 80 90 90 90 86 103 110 110 110 106 106 110 110 110 130 Average Speed 109 | 79 81 90 90 90 98 103 110 110 112 113 107 110 113 137 130 Slowest Speed 1500 | 80 90 90 90 90 103 110 110 110 1150 140 130 110 120 1500 160 Overloaded Moves . | . . . . . . . . . . . . . . . . Propulsion Burnouts . | . . . . . . . . . . . . . . . . Robots Hopped . | . . . . . . . . . . . . . . . . Cave-ins Triggered . | . . . . . . . . . . . . . . . . Teleports 1 | . . . . . . . . . . . . . . . 1 Exploration Rate (%) 48 | 3 33 86 77 40 36 16 17 68 79 28 16 59 53 72 88 Regions Visited 15 Branch Regions 10 Pre-discovered Areas 8 | . 1 1 . . . . . 1 1 . . 1 . 3 . Known Exits Taken 4 | . . . . . . . . . . . 1 1 1 1 . Unknown Exits Taken 11 | 1 1 1 1 1 1 1 1 1 1 1 . . . . . Scrap Searched 12 | . . 1 . . . . . . 2 . . 1 4 . 4 Spaces Dug 2 | . . . . . . . . . . . 1 . 1 . . Terrain Destroyed 123 | . . . . . 30 . . . 33 10 9 34 6 1 . Melee . | . . . . . . . . . . . . . . . . Projectile 26 | . . . . . . . . . 1 4 9 5 6 1 . AOE 97 | . . . . . 30 . . . 32 6 . 29 . . . Terrain Rammed . | . . . . . . . . . . . . . . . . Walls Destroyed . | . . . . . . . . . . . . . . . . Machines Disabled . | . . . . . . . . . . . . . . . . Actions | -11 -10 -10 -10 -9 -8 -7 -7 -7 -6 -6 -5 -5 -5 -5 -4 --------- Run | Scr Mat Min Exi Min Mat Fac Low Dat Pro Fac Fac Upp Upp Zhi Pro Total 7666 | 51 163 459 341 183 526 683 119 85 718 1121 690 736 583 375 833 Wait 719 | . 34 25 14 50 13 40 14 . 106 48 168 42 75 58 32 Move 6265 | 42 123 419 325 113 396 543 102 84 560 994 471 660 458 247 728 Hop . | . . . . . . . . . . . . . . . . Pick Up 94 | 3 1 3 2 2 24 20 . . 2 14 8 4 3 2 6 Fast Attach 72 | 6 1 1 . . 11 11 . . 2 13 4 3 6 10 4 Attach 48 | . . . . 1 6 6 . . 4 5 3 . 3 10 10 Detach 6 | . . . . . . . . . 1 2 1 . . 1 1 Swap 25 | . . . . . 4 2 1 . 1 4 2 2 6 3 . Drop 108 | . 1 . . . 24 30 . . 4 18 10 7 7 6 1 Fire 318 | . 3 11 . 16 46 31 2 1 35 23 23 16 24 36 51 Melee . | . . . . . . . . . . . . . . . . Ram . | . . . . . . . . . . . . . . . . Kick . | . . . . . . . . . . . . . . . . Crush . | . . . . . . . . . . . . . . . . Escape Stasis 2 | . . . . . . . . . . . . . . 2 . Rewire 3 | . . . . . . . . . 3 . . . . . . Trap 6 | . . . . 1 2 . . . . . . 2 1 . . Miscellaneous . | . . . . . . . . . . . . . . . . Route ------- -11/Scrapyard -10/Materials -10/Mines (discovered 2 exits: *Mat / *Exi) -10/Exiles -9/Mines -8/Materials -7/Factory -7/Lower Caves -7/Data Miner -6/Proximity Caves -6/Factory -5/Factory -5/Upper Caves -5/Upper Caves (discovered 2 exits: [*Fac] / *Zhi) -5/Zhirov -4/Proximity Caves History --------- Turn | Location | Event 7 | -11/Scrapyard | Discovered new exit (range 15) 47 | -11/Scrapyard | Entered Materials 170 | -10/Materials | Discovered new exit (range 16) 193 | -10/Materials | Entered Mines 247 | -10/Mines | Assisted by bots powering up and referring to "LRC-V3" 264 | -10/Mines | Identified exit to Materials 314 | -10/Mines | Build established: Mutant 362 | -10/Mines | Deemed a non-threat by the Exiles lab entrance 362 | -10/Mines | Discovered new exit (range 5) 420 | -10/Mines | Received a Rocket Launcher from a helpful Derelict 527 | -10/Mines | Learned location of Zion (-6) 633 | -10/Mines | Entered Exiles 633 | -10/Exiles | Found Exiles lab abandoned 633 | -10/Exiles | Accompanied by 3 allies 919 | -10/Exiles | Discovered new exit (range 10) 942 | -10/Exiles | Entered Mines 942 | -9/Mines | Accompanied by 3 allies 994 | -9/Mines | Assembled infested the area 1002 | -9/Mines | Met a Derelict bent on vengeance 1112 | -9/Mines | Found a hidden stash of uninstalled traps 1131 | -9/Mines | Discovered new exit (range 5) 1146 | -9/Mines | Entered Materials 1146 | -8/Materials | Evolved 4 slots: Propulsion x1, Utility x2, Weapon x1 1497 | -8/Materials | Build established: Tank 1573 | -8/Materials | Discovered new exit (range 3) 1735 | -8/Materials | Entered Factory 1735 | -7/Factory | Evolved 2 slots: Utility x2 2035 | -7/Factory | Fabricated Flak Gun (x2) 2161 | -7/Factory | Fabricated A-02 Transporter? 2356 | -7/Factory | Discovered new exit (range 15) 2474 | -7/Factory | Entered Lower Caves 2596 | -7/Lower Caves | A Derelict revealed a hidden shortcut to meet someone special 2606 | -7/Lower Caves | Entered Data Miner 2606 | -7/Data Miner | Discovered new exit (range 6) 2627 | -7/Data Miner | Met Data Miner 2648 | -7/Data Miner | Learned location of Section 7 (-3) 2648 | -7/Data Miner | Acquired the access code to Warlord's prototype stash 2665 | -7/Data Miner | Received God Mode back door access code from Data Miner 2702 | -7/Data Miner | Entered Proximity Caves 2706 | -6/Proximity Caves | Build established: Scavenger-Mutant 2739 | -6/Proximity Caves | Learned location of Extension (-5) 2943 | -6/Proximity Caves | Escorted by Enhanced Grunt 3379 | -6/Proximity Caves | Attracted the attention of an 0b10 outpost 3425 | -6/Proximity Caves | Destroyed 7 combat bots 3468 | -6/Proximity Caves | Discovered new exit (range 12) 3534 | -6/Proximity Caves | Entered Factory 3534 | -6/Factory | Accompanied by 2 allies 3534 | -6/Factory | Evolved 2 slots: Utility x2 3538 | -6/Factory | Lost 3 parts (2n1u) 3891 | -6/Factory | Build established: Scavenger-Tank 4406 | -6/Factory | Found Prototype Device 4406 | -6/Factory | Identified Exp. Thermal Shield 4664 | -6/Factory | Discovered new exit (range 15) 4837 | -6/Factory | Entered another Factory area 4837 | -5/Factory | Evolved 2 slots: Propulsion x1, Utility x1 4838 | -5/Factory | Identified exit to Upper Caves 5608 | -5/Factory | Entered Upper Caves 5615 | -5/Upper Caves | Learned Factory terminal intel 6225 | -5/Upper Caves | Attracted the attention of an 0b10 checkpoint 6434 | -5/Upper Caves | Discovered new exit (range 5) 6439 | -5/Upper Caves | Identified exit to Upper Caves 6440 | -5/Upper Caves | Entered another Upper Caves area 6440 | -5/Upper Caves | Discovered new exit (range 10) 6575 | -5/Upper Caves | Learned Factory security intel 6689 | -5/Upper Caves | Spotted B-75 Beast 6853 | -5/Upper Caves | Encountered a Warlord checkpoint 6860 | -5/Upper Caves | Discovered new exit (range 11) 6877 | -5/Upper Caves | Identified exit to Zhirov 6918 | -5/Upper Caves | Destroyed B-75 Beast 6949 | -5/Upper Caves | Lost 4 parts (1p1n1u1w) 7119 | -5/Upper Caves | Entered Zhirov 7119 | -5/Zhirov | Discovered new exit (range 3) 7141 | -5/Zhirov | Met Zhirov 7177 | -5/Zhirov | Learned location of Quarantine (-3) 7177 | -5/Zhirov | Learned location of Testing (-2) 7177 | -5/Zhirov | Learned location of Command (-1) 7188 | -5/Zhirov | Zhirov requested help retrieving the SGEMP Prototype 7206 | -5/Zhirov | Found Alien Artifact 7206 | -5/Zhirov | Identified Integrated Dissipator 7206 | -5/Zhirov | Installed Integrated Dissipator, increased core heat dissipation (+20) 7226 | -5/Zhirov | Found Alien Artifact 7344 | -5/Zhirov | Attacked by Zhirov 7375 | -5/Zhirov | Destroyed Svarog 7376 | -5/Zhirov | System corruption reached 10% 7392 | -5/Zhirov | Destroyed Perun 7433 | -5/Zhirov | Zhirov warped through subspace 7441 | -5/Zhirov | Lost 10 parts (3n4u3w) 7442 | -5/Zhirov | Zhirov detonated his lab 7442 | -5/Zhirov | Cloak Generator disabled 7473 | -5/Zhirov | Lost 4 parts (1u3w) 7487 | -5/Zhirov | Found Adv. Powered Armor 7490 | -5/Zhirov | Found Adv. Powered Armor 7624 | -5/Zhirov | Identified exit to Proximity Caves 7630 | -5/Zhirov | Entered Proximity Caves 7773 | -4/Proximity Caves | Build established: Scavenger-Mutant 8001 | -4/Proximity Caves | Learned Research terminal intel 8041 | -4/Proximity Caves | Learned 12 Research zone layouts 8655 | -4/Proximity Caves | Core integrity fell below 50% 8708 | -4/Proximity Caves | Lost 8 parts (1p2n3u2w) 8711 | -4/Proximity Caves | Destroyed 10 combat bots 8713 | -4/Proximity Caves | Attracted the attention of an 0b10 outpost 8748 | -4/Proximity Caves | Identified Transdimensional Reconstructor 8748 | -4/Proximity Caves | Warped through subspace 8756 | -4/Proximity Caves | Core integrity fell below 20% 8771 | -4/Proximity Caves | Destroyed by G-67 Veteran with Electrolaser Last Messages --------------- 08739_ VTOL Module fries itself beyond repair. 08741_ Acquired Hyp. Mass Driver. 08744_ C-30 ARC bursts open, deploying its payload. 08744_ G-73 Enforcer unfolds itself. 08744_ B-60 Warrior unfolds itself. 08744_ I-47 Archangel unfolds itself. 08745_ HV Slug penetrates Wall. 08747_ Wheel destroyed. 08748_ Identified Transdimensional Reconstructor. 08748_ Warped through subspace. 08755_ System corrupted: Component data lost. 08755_ C-30 ARC bursts open, deploying its payload. 08755_ G-73 Enforcer unfolds itself. 08755_ G-67 Veteran unfolds itself. 08758_ Hvy. Machine Gun destroyed. 08758_ Adv. Heat Sink destroyed. 08761_ Hyp. Mass Driver destroyed. 08764_ Com. Matter Pod destroyed. 08770_ Particle Reactor destroyed. 08770_ Imp. Energy Well destroyed. Map ----- +----------------------------------------------------+ | ?????????????????????????????????????????????????? | | ?????????????????????????????????????????????????? | | ?????????????????????????????????????????????????? | | ?????????????????????????????????????????????????? | | ?????????????????????????????????????????????????? | | ?????????????????????????????????????????????????? | | ?????????????????????????????????????????????????? | | ?????????????????????????????????????????????????? | | ?????????????????????????????????????????????????? | | ?????????????????????????????????????????????????? | | ?????##??????????????????????????????????????????? | | ????# ???????????????????#??????????????????????? | | ??## ??????????????????? ###???????????????????? | | ??# ???????????????????? ##??????????????????? | | ??# ???????????????????? #??????????????????? | | ??# #????????????##?????? ??????????????????? | | ??# ##??????????## ???# ##?????????????????? | | ??# #????????### #??# ?????????????????? | | ??# #??????? ## #### ??????????????????? | | ??# "#??????? ## ???????????????????? | | ?## "#??????? #???????????????????? | | ## " ####???# #???????????????????? | | "% ##?? ggg##??????????????????? | | "#### ##? ## g ???????????????????? | | " "# ## #??# #????????????????????? | | # / "# #???#@ #????????????????????? | | #### "#%% % #???# #????????????????????? | | #??? "# % ## #??# #????????????????????? | | #??? # ##?? #??# ???????????????????? | | #??? # %% #?????####??# ??????????????????? | | ####+### #???##??????## ?????????????????? | | %% #?## #????????## ????????????????? | | ######## ### #??????????# ???????????????? | | ### ### % #???????????? #?????????????? | | # ## ##???????????? #????????????? | | ## ##??????????? ##????????????? | | ### ##??????????? ##?????????????? | | ### #?## ##?????????? ##??????????????? | | ##?## #??# #???????????#????????????????? | | ####### #??# #????????????????????????????? | | ??## ##??## #????????????????????????????? | | ?## ##????## ##???????????????????????????? | | ?# #??????# #???????????????????????????? | | ?## ##????# ###???????????????????????????? | | ??# #????## #?????????????????????????????? | | ??##### #?????####?????????????????????????????? | | ??????#####??????????????????????????????????????? | | ?????????????????????????????????????????????????? | | ?????????????????????????????????????????????????? | | ?????????????????????????????????????????????????? | +----------------------------------------------------+ Best States ------------- Heat Dissipation 91 Energy Generation 23 Energy Capacity 940 Matter Stores 300 Matter Capacity 450 Sight Range 16 Robot Scan Range 20 Terrain Scan Range 20 Terrain Scan Density 10 Armor Coverage 825 Resistance: TH 30 Evasion (%) 44 Targeting Accuracy 14 Recoil Reduction 1 Matter Filtering 50 Energy Filtering 30 Overload Regulation 40 Item Schematics ----------------- Combat Drone Bay | -7/Data Miner | Free Lgt. Regenerative Plating | -7/Data Miner | Free Cmb. Gravmag System | -7/Data Miner | Free Triangulator | -7/Data Miner | Free Exp. Terrain Scan Processor | -7/Data Miner | Free Exp. Transmission Jammer | -7/Data Miner | Free Mni. Smartbomb Launcher | -7/Data Miner | Free Kinetic Spear | -7/Data Miner | Free Assault Drone Bay | -5/Zhirov | Free Exp. Heat Sink | -5/Zhirov | Free Exp. Optical Array | -5/Zhirov | Free Imp. Arc Thrower | -5/Zhirov | Free Robot Schematics ------------------ P-70 Sage | -7/Data Miner | Free I-36 Angel | -7/Data Miner | Free G-67 Veteran | -7/Data Miner | Free Fabricated ------------ Flak Gun | x2 | -7/Factory | Preloaded A-02 Transporter | x1 | -7/Factory | Preloaded Alien Tech Used ----------------- Integrated Dissipator Transdimensional Reconstructor Achievements -------------- None Challenges ------------ None Game ------ Seed ArchitectCouplerWand Manual? 0 Play Time 01:33:01 Cumulative 232.6 hours Start 2021.05.13 @ 17:31:51 End 2021.05.13 @ 19:04:46 Sessions 1 Manual Loads 0 Difficulty Rogue Special Mode None Game No. 94 Rogue 94 Adventurer 0 Explorer 0 Win Type - Total 5 Types 5/0/0/0/0/0/0/0/0 Lore% 67 Gallery% 79 Achievement% 59 Wizard Run 0 Options --------- ASCII 0 Keyboard 0 Movement Mouse Keybinds 0 Fullscreen 2 Font 12/Smallcaps Map View 83x54 Tactical HUD 1 Map Filters NONE Filters NONE Steam X RUN: dd21584a-351e-42d3-95d8-19341f1db1ab